bitfinex-derivatives/quotes_SOLF0:USTF0_20250522
["timestamp","ask_amount","ask_price","bid_price","bid_amount"]
[1747888151150,5.71407115,176.19,176.17,0.03613286]
[1747888151448,0.03947115,176.19,176.17,0.03613286]
[1747888151846,5.71417115,176.19,176.17,0.03613286]
[1747888153151,0.03947115,176.19,176.17,0.03613286]
[1747888154553,5.71397115,176.19,176.17,0.03613286]
[1747888156656,5.6748,176.18,176.17,0.03613286]
[1747888157256,5.71407115,176.19,176.17,0.03613286]
[1747888157456,0.03947115,176.19,176.17,0.03613286]
[1747888158355,5.6748,176.18,176.17,0.03613286]
[1747888160163,0.03947115,176.19,176.18,5.6748]
[1747888160459,141.57594362,176.28,176.18,131.3]
[1747888160660,5.6721,176.27,176.22,5.6736]
[1747888161156,131.3,176.28,176.18,131.3]
[1747888161355,0.03717891,176.25,176.21,0.03886617]
[1747888161953,0.03717891,176.25,176.23,5.673]
[1747888163361,0.03717891,176.25,176.24,5.6729]
[1747888165671,0.03717891,176.25,176.23,136.973]
[1747888166069,0.03717891,176.25,176.23,131.3]
[1747888166563,0.03717891,176.25,176.24,5.6729]
[1747888169268,0.03717891,176.25,176.23,136.9732]
[1747888169575,0.03717891,176.25,176.21,2.99048598]
[1747888169870,0.03717891,176.25,176.24,5.6729]
[1747888174171,3.887,176.35,176.28,5.6716]
[1747888174576,5.6703,176.33,176.28,5.6716]
[1747888175076,0.03792282,176.32,176.29,0.04011149]
[1747888175276,0.03792282,176.32,176.29,5.71141149]
[1747888175676,0.03792282,176.32,176.29,0.04011149]
[1747888176673,0.03792282,176.32,176.31,5.6707]
[1747888182576,0.03792282,176.32,176.31,136.2307]
[1747888186783,0.03792282,176.32,176.31,136.2107]
[1747888188983,1.9622,176.43,176.32,5.6701]
[1747888189186,5.6687,176.38,176.31,130.54]
[1747888189385,1.9622,176.43,176.31,130.54]
[1747888190077,0.04202838,176.39,176.36,5.669]
[1747888190282,0.04202838,176.39,176.36,130.52]
[1747888190687,0.04202838,176.39,176.38,5.6684]
[1747888190885,0.04202838,176.39,176.36,130.52]
[1747888192388,0.04202838,176.39,176.37,5.6685]
[1747888192589,0.04202838,176.39,176.36,130.52]
[1747888193085,0.04202838,176.39,176.38,5.6684]
[1747888193689,2.0549,176.47,176.41,5.6674]
[1747888194089,5.6659,176.46,176.36,130.52]
[1747888194596,0.04134752,176.43,176.39,0.04102705]
[1747888195293,0.04134752,176.43,176.4,5.6677]
[1747888195600,0.04134752,176.43,176.39,0.04102705]
[1747888195889,0.04134752,176.43,176.4,5.6677]
[1747888196196,0.04134752,176.43,176.39,0.04102705]
[1747888198389,0.04134752,176.43,176.4,130.5]
[1747888199993,5.70844752,176.43,176.39,130.52102705]
[1747888200195,0.04134752,176.43,176.39,130.52102705]
[1747888200494,0.04134752,176.43,176.39,0.04102705]
[1747888200698,5.6678,176.4,176.39,0.04102705]
[1747888200995,2.061,176.42,176.39,0.04102705]
[1747888201698,5.6675,176.41,176.39,0.04102705]
[1747888202198,5.6678,176.4,176.39,0.04102705]
[1747888204506,5.6675,176.41,176.39,0.04102705]
[1747888205699,2.061,176.42,176.39,0.04102705]
[1747888206003,0.04134752,176.43,176.42,5.6671]
[1747888206191,0.04134752,176.43,176.4,129.9]
[1747888206494,0.04134752,176.43,176.4,237.62]
[1747888207405,0.04134752,176.43,176.42,5.6671]
[1747888208010,2.062,176.52,176.47,5.6653]
[1747888208211,2.062,176.52,176.47,129.88]
[1747888208508,4.1561,176.56,176.47,129.88]
[1747888208807,5.6634,176.54,176.49,5.6647]
[1747888209110,0.0417208,176.53,176.5,0.04010371]
[1747888209604,0.0417208,176.53,176.5,5.70470371]
[1747888209816,0.0417208,176.53,176.5,0.04010371]
[1747888210101,4.0383,176.61,176.5,7.34770835]
[1747888210300,2.0837,176.61,176.5,7.30760464]
[1747888210502,1.998,176.63,176.54,7.30760464]
[1747888210805,6.88866688,176.64,176.55,237.6]
[1747888211110,6.88866688,176.64,176.58,7.30760464]
[1747888211406,6.88866688,176.64,176.58,0.03841263]
[1747888212201,5.6604,176.63,176.58,0.03841263]
[1747888212502,6.88866688,176.64,176.58,0.03841263]
[1747888212701,12.54876688,176.64,176.58,5.70011263]
[1747888212902,0.03757025,176.63,176.58,0.03841263]
[1747888215305,0.03757025,176.63,176.59,7.30760464]
[1747888215507,0.03757025,176.63,176.62,5.6607]
[1747888215814,0.03757025,176.63,176.62,135.4807]
[1747888216003,0.03757025,176.63,176.62,129.82]
[1747888216312,0.03757025,176.63,176.59,129.82]
[1747888216511,0.03757025,176.63,176.59,135.4814]
[1747888216808,0.03757025,176.63,176.59,129.82]
[1747888218507,0.03757025,176.63,176.62,5.6607]
[1747888219008,129.84,176.72,176.59,129.82]
[1747888219209,5.8127,176.73,176.59,131.833]
[1747888219412,5.6585,176.69,176.59,131.833]
[1747888220006,0.04064231,176.66,176.63,5.6602]
[1747888220205,0.04064231,176.66,176.64,129.76]
[1747888220610,0.04064231,176.66,176.65,5.6598]
[1747888221012,5.8127,176.73,176.64,129.76]
[1747888221512,3.7968,176.73,176.64,129.76]
[1747888221712,129.76,176.8,176.64,129.76]
[1747888222013,0.04061642,176.73,176.69,0.0398401]
[1747888222810,5.6577,176.72,176.69,0.0398401]
[1747888223005,0.04061642,176.73,176.69,0.0398401]
[1747888223210,1.9458,176.72,176.69,0.0398401]
[1747888223406,3.8524,176.72,176.69,0.0398401]
[1747888224514,5.7798,176.72,176.69,0.0398401]
[1747888224711,5.6581,176.71,176.69,0.0398401]
[1747888225011,5.7798,176.72,176.69,0.0398401]
[1747888226112,5.6582,176.7,176.69,0.0398401]
[1747888226615,5.6579,176.71,176.69,0.0398401]
[1747888227315,5.6582,176.7,176.69,0.0398401]
[1747888227713,5.7798,176.72,176.65,129.72]
[1747888228510,5.6584,176.7,176.65,135.3795]
[1747888228710,0.04316622,176.69,176.66,0.03783331]
[1747888228918,0.0423041,176.69,176.68,5.6588]
[1747888229417,0.0423041,176.69,176.66,0.04051161]
[1747888230618,0.0423041,176.69,176.67,5.6588]
[1747888230819,0.0423041,176.69,176.66,0.04051161]
[1747888231122,5.7008041,176.69,176.67,129.72]
[1747888231417,0.0423041,176.69,176.67,129.72]
[1747888232304,5.7011041,176.69,176.67,129.72]
[1747888232818,0.0423041,176.69,176.67,129.72]
[1747888233519,0.0423041,176.69,176.68,5.6588]
[1747888233720,0.0423041,176.69,176.67,129.72]
[1747888233721,4.035,176.77,176.67,129.72]
[1747888233925,1.9576,176.77,176.67,129.72]
[1747888234219,5.6563,176.76,176.67,129.72]
[1747888234620,0.03827818,176.73,176.7,5.69522889]
[1747888234920,0.03827818,176.73,176.7,0.03732889]
[1747888235523,0.03827818,176.73,176.71,5.6576]
[1747888235815,0.03827818,176.73,176.72,129.36]
[1747888236019,0.03827818,176.73,176.7,0.03732889]
[1747888236317,0.03827818,176.73,176.72,129.36]
[1747888238919,0.03827818,176.73,176.72,135.0175]
[1747888241318,5.8649,176.82,176.72,129.36]
[1747888241720,5.8649,176.82,176.72,136.62024416]
[1747888241921,11.5195,176.82,176.72,136.62024416]
[1747888242218,5.8649,176.82,176.72,136.62024416]
[1747888242425,0.03698768,176.79,176.75,0.041862]
[1747888242726,0.03698768,176.79,176.76,107.54]
[1747888242922,0.03698768,176.79,176.77,134.9957]
[1747888243123,0.03698768,176.79,176.77,129.34]
[1747888243328,3.9958,176.88,176.77,129.34]
[1747888243626,5.6528,176.87,176.77,129.34]
[1747888243817,3.9958,176.88,176.77,129.34]
[1747888244018,9.6484,176.88,176.77,129.34]
[1747888244218,0.03692059,176.84,176.81,0.03605775]
[1747888244520,0.03692059,176.84,176.82,129.3]
[1747888245121,0.03692059,176.84,176.83,5.654]
[1747888245625,0.03692059,176.84,176.82,129.3]
[1747888246320,0.03692059,176.84,176.82,134.9543]
[1747888246521,0.03692059,176.84,176.82,129.3]
[1747888246828,0.03692059,176.84,176.82,134.9541]
[1747888247222,0.03692059,176.84,176.82,129.3]
[1747888247528,0.03692059,176.84,176.83,5.654]
[1747888247726,0.03692059,176.84,176.82,129.3]
[1747888248129,0.03692059,176.84,176.83,5.654]
[1747888251533,0.03692059,176.84,176.82,134.9542]
[1747888251920,0.03692059,176.84,176.83,129.26]
[1747888252733,0.03692059,176.84,176.83,134.914]
[1747888253128,0.03692059,176.84,176.83,129.26]
[1747888254233,0.03692059,176.84,176.83,134.914]
[1747888254634,0.03692059,176.84,176.83,129.26]
[1747888255134,5.69062059,176.84,176.83,129.26]
[1747888255339,0.03692059,176.84,176.83,129.26]
[1747888256139,5.69062059,176.84,176.83,129.26]
[1747888256439,0.03692059,176.84,176.81,0.03605775]
[1747888257048,5.6542,176.83,176.81,0.03605775]
[1747888257237,0.03692059,176.84,176.81,0.03605775]
[1747888257944,5.6543,176.83,176.81,0.03605775]
[1747888259840,5.6543,176.82,176.81,0.03605775]
[1747888260041,0.03692059,176.84,176.81,0.03605775]
[1747888261646,5.6543,176.82,176.81,0.03605775]
[1747888262142,0.03692059,176.84,176.76,128.94]
[1747888262339,1.9953,176.83,176.76,128.94]
[1747888262540,1.931,176.82,176.68,1.32447267]
[1747888262742,13.36381694,176.82,176.7,129.94991981]
[1747888262942,120.84381694,176.82,176.7,129.94991981]
[1747888263147,0.0427044,176.78,176.74,0.03959286]
[1747888263343,128.94,176.77,176.74,0.03959286]
[1747888263650,128.94,176.77,176.7,128.94]
[1747888263849,5.6586,176.69,176.66,488.7]
[1747888264447,5.6582,176.7,176.66,488.7]
[1747888264650,5.69601145,176.7,176.66,488.74022896]
[1747888265546,5.6586,176.69,176.66,488.74022896]
[1747888266144,0.03781145,176.7,176.66,488.74022896]
[1747888266348,1.931,176.82,176.66,500.19438624]
[1747888266544,1.931,176.82,176.67,236.46]
[1747888266750,5.6573,176.73,176.69,5.6584]
[1747888266949,5.6573,176.73,176.7,128.96]
[1747888267150,128.96,176.81,176.69,128.96]
[1747888267450,0.04222496,176.77,176.73,0.04136722]
[1747888267950,5.6569,176.75,176.73,0.04136722]
[1747888268145,0.04222496,176.77,176.73,0.04136722]
[1747888268653,5.6569,176.74,176.73,0.04136722]
[1747888270753,0.04222496,176.77,176.73,0.04136722]
[1747888271641,5.6569,176.74,176.73,0.04136722]
[1747888275454,5.6569,176.74,176.73,6.722e-05]
[1747888278655,7.6794,176.74,176.61,1.00991981]
[1747888278855,5.6607,176.62,176.61,1.00991981]
[1747888279043,129.0,176.64,176.59,1.32447267]
[1747888279249,5.6636,176.53,176.45,132.29392655]
[1747888279652,129.0,176.58,176.45,3.29392655]
[1747888279858,488.92,176.61,176.51,3.68e-05]
[1747888279859,5.664,176.52,176.51,3.68e-05]
[1747888280056,236.52,176.52,176.45,6.335e-05]
[1747888280254,1.9967,176.51,176.36,129.0]
[1747888280560,489.1,176.5,176.3,2.0272]
[1747888280854,11.4992555,176.48,176.25,129.04]
[1747888281051,489.1,176.5,176.29,11.49891801]
[1747888281248,0.03714269,176.4,176.36,0.03834566]
[1747888281455,0.03714269,176.4,176.28,6.335e-05]
[1747888281456,129.07714269,176.4,176.28,6.335e-05]
[1747888281652,129.04,176.4,176.28,6.335e-05]
[1747888281852,2.0133,176.39,176.28,6.335e-05]
[1747888282056,129.04,176.42,176.28,6.335e-05]
[1747888282450,5.6695,176.35,176.33,0.03697238]
[1747888282647,0.03574947,176.37,176.33,0.03697238]
[1747888284852,0.03574947,176.37,176.33,5.70687238]
[1747888285059,0.03574947,176.37,176.33,0.03697238]
[1747888285352,0.03574947,176.37,176.35,5.6693]
[1747888285559,131.0853,176.48,176.36,129.12]
[1747888285853,5.6662,176.45,176.36,129.12]
[1747888286250,131.0853,176.48,176.33,107.62]
[1747888286558,0.04082139,176.42,176.39,0.03805638]
[1747888286754,129.20082139,176.42,176.32,129.16]
[1747888286959,129.20082139,176.42,176.28,129.16]
[1747888287158,129.16,176.42,176.28,129.16]
[1747888287458,129.16,176.45,176.28,129.16]
[1747888287753,129.16,176.45,176.35,0.03624546]
[1747888287964,0.04257936,176.42,176.35,0.03624546]
[1747888290664,0.04257936,176.42,176.37,5.6688]
[1747888291364,0.04257936,176.42,176.35,0.03624546]
[1747888291759,0.04257936,176.42,176.35,1.93824546]
[1747888292155,0.04257936,176.42,176.36,2.097]
[1747888292559,0.04257936,176.42,176.38,5.6683]
[1747888292755,0.04257936,176.42,176.38,134.8683]
[1747888292967,0.04257936,176.42,176.41,5.6675]
[1747888293464,137.9399,176.52,176.42,5.6669]
[1747888294164,137.9399,176.52,176.4,5.6675]
[1747888294467,0.03626306,176.48,176.44,0.04242786]
[1747888300770,5.70176306,176.48,176.44,0.04242786]
[1747888301665,5.69626306,176.48,176.24,17.04]
[1747888301872,11.50134474,176.44,176.2,11.50134474]
[1747888302071,245.8025,176.43,176.21,0.98699604]
[1747888302270,5.6678,176.41,176.32,5.6701]
[1747888302472,245.8025,176.43,176.28,133.98]
[1747888302670,0.03660643,176.37,176.34,0.03998933]
[1747888304172,0.03660643,176.37,176.36,5.6691]
[1747888304367,0.03660643,176.37,176.34,0.03998933]
[1747888305474,0.03660643,176.37,176.36,5.6691]
[1747888305677,136.0117,176.43,176.34,0.03998933]
[1747888305873,625.7685,176.47,176.34,0.03998933]
[1747888306077,2.0254,176.48,176.43,5.6667]
[1747888306282,2.0254,176.48,176.38,134.02]
[1747888306469,7.6907,176.48,176.4,5.6677]
[1747888306669,0.03973402,176.46,176.42,0.03996729]
[1747888308477,0.03973402,176.46,176.43,5.6666]
[1747888309683,0.03973402,176.46,176.44,5.6662]
[1747888309976,0.03973402,176.46,176.42,0.03996729]
[1747888310278,0.03973402,176.46,176.44,5.6665]
[1747888310677,0.03973402,176.46,176.42,0.03996729]
[1747888311181,0.03973402,176.46,176.43,5.6666]
[1747888311882,0.03973402,176.46,176.44,5.6664]
[1747888312481,0.03973402,176.46,176.43,5.6668]
[1747888312689,0.03973402,176.46,176.42,0.03996729]
[1747888313776,0.03973402,176.46,176.42,5.70706729]
[1747888313983,0.03973402,176.46,176.42,0.03996729]
[1747888314181,134.03973402,176.46,176.42,0.03996729]
[1747888315582,134.03973402,176.46,176.42,5.70686729]
[1747888316182,134.03973402,176.46,176.42,0.03996729]
[1747888316777,134.03973402,176.46,176.42,5.70676729]
[1747888316977,134.03973402,176.46,176.42,0.03996729]
[1747888318779,5.6664,176.45,176.42,0.03996729]
[1747888318979,134.03973402,176.46,176.42,0.03996729]
[1747888319184,134.03973402,176.46,176.39,5.6679]
[1747888319690,134.03973402,176.46,176.34,134.0]
[1747888319881,134.0,176.46,176.34,134.0]
[1747888320082,0.03781004,176.42,176.38,0.03983117]
[1747888321485,0.03781004,176.42,176.4,5.6676]
[1747888321982,0.03781004,176.42,176.38,5.70813117]
[1747888322284,0.03781004,176.42,176.38,0.03983117]
[1747888322485,134.0,176.41,176.38,0.03983117]
[1747888322686,5.6684,176.39,176.3,136.0673]
[1747888323285,7.6239,176.4,176.36,5.6688]
[1747888323481,134.0,176.41,176.3,136.0673]
[1747888323684,134.0,176.41,176.4,5.6678]
[1747888323884,0.03932828,176.42,176.39,0.04030771]
[1747888324082,0.04338128,176.42,176.39,0.04318888]
[1747888324278,0.04338128,176.42,176.4,5.6678]
[1747888324476,0.04338128,176.42,176.39,0.04318888]
[1747888325185,0.04338128,176.42,176.3,136.0673]
[1747888325386,5.6679,176.4,176.36,5.6688]
[1747888325790,5.6685,176.38,176.34,5.6695]
[1747888325981,0.04228638,176.38,176.34,0.03758794]
[1747888328288,5.669,176.37,176.34,0.03758794]
[1747888328481,0.04228638,176.38,176.34,0.03758794]
[1747888328686,0.04228638,176.38,176.25,138.67891462]
[1747888328884,5.6697,176.35,176.3,5.6707]
[1747888329086,133.44,176.34,176.3,5.6707]
[1747888329290,133.44,176.34,176.25,134.75231462]
[1747888329683,0.03923689,176.31,176.28,0.04140618]
[1747888329879,0.03923689,176.31,176.29,5.6711]
[1747888330091,0.03923689,176.31,176.28,0.04140618]
[1747888330389,0.03923689,176.31,176.29,5.6713]
[1747888330585,0.03923689,176.31,176.28,0.04140618]
[1747888331386,0.03923689,176.31,176.28,5.71300618]
[1747888331690,0.03923689,176.31,176.28,0.04140618]
[1747888332493,5.71013689,176.31,176.28,0.04140618]
[1747888332789,0.03923689,176.31,176.28,0.04140618]
[1747888333898,0.03923689,176.31,176.3,5.671]
[1747888334583,5.2177275,176.36,176.29,1.9663]
[1747888335212,5.2177275,176.36,176.33,5.67]
[1747888335390,5.2177275,176.36,176.29,1.9663]
[1747888335695,0.0407164,176.34,176.31,0.04251552]
[1747888336397,0.0407164,176.34,176.33,5.67]
[1747888337191,0.0407164,176.34,176.31,5.71291552]
[1747888337393,0.0407164,176.34,176.31,0.04251552]
[1747888338885,0.0407164,176.34,176.32,5.6704]
[1747888339189,0.0407164,176.34,176.31,0.04251552]
[1747888342602,0.0407164,176.34,176.33,5.67]
[1747888347298,1.64e-05,176.34,176.33,5.67]
[1747888347504,5.2177275,176.44,176.33,17.18134474]
[1747888347807,1.936,176.49,176.33,17.18134474]
[1747888347808,5.2177275,176.45,176.34,107.76]
[1747888348402,0.04355483,176.41,176.38,0.0389533]
[1747888348603,5.2177275,176.45,176.39,133.48]
[1747888348803,5.2177275,176.45,176.4,3.8278]
[1747888349197,5.2177275,176.45,176.44,5.6665]
[1747888349403,5.2177275,176.45,176.4,3.8278]
[1747888349605,0.03716591,176.44,176.41,0.03775816]
[1747888349804,0.03716591,176.44,176.34,133.46]
[1747888350001,5.97926591,176.44,176.3,623.46]
[1747888350212,17.44344474,176.44,176.3,623.46]
[1747888350413,17.44344474,176.44,176.26,133.46]
[1747888350817,0.03573309,176.38,176.34,0.03947276]
[1747888351317,0.03573309,176.38,176.34,1.04273529]
[1747888353926,0.03573309,176.38,176.34,0.03947276]
[1747888354328,5.70423309,176.38,176.34,0.03947276]
[1747888354627,0.03573309,176.38,176.34,0.03947276]
[1747888356429,0.03573309,176.38,176.35,5.6694]
[1747888356631,0.03573309,176.38,176.34,0.03947276]
[1747888358224,0.03573309,176.38,176.36,5.669]
[1747888358433,0.03573309,176.38,176.34,0.03947276]
[1747888358926,0.03573309,176.38,176.34,5.70897276]
[1747888359423,0.03573309,176.38,176.34,0.03947276]
[1747888359726,0.03573309,176.38,176.35,5.6693]
[1747888360027,0.03573309,176.38,176.37,5.6688]
[1747888360228,5.2177275,176.45,176.36,138.24]
[1747888360728,5.2177275,176.45,176.32,138.24]
[1747888361027,16.71907224,176.45,176.32,138.24]
[1747888361332,0.03715133,176.4,176.37,0.04063416]
[1747888361536,138.25715133,176.4,176.37,0.04063416]
[1747888362322,5.6684,176.38,176.37,0.04063416]
[1747888362523,138.25715133,176.4,176.37,0.04063416]
[1747888363828,143.92515133,176.4,176.37,0.04063416]
[1747888364330,138.25715133,176.4,176.37,0.04063416]
[1747888366429,5.6684,176.39,176.37,0.04063416]
[1747888366629,138.25715133,176.4,176.37,0.04063416]
[1747888367132,5.6681,176.39,176.37,0.04063416]
[1747888367428,138.25715133,176.4,176.37,0.04063416]
[1747888367834,5.6681,176.39,176.37,0.04063416]
[1747888368033,138.25715133,176.4,176.37,0.04063416]
[1747888368221,0.03715133,176.4,176.37,0.04063416]
[1747888368626,0.03715133,176.4,176.38,5.6682]
[1747888369426,0.03715133,176.4,176.37,0.04063416]
[1747888369832,5.70505133,176.4,176.37,0.04063416]
[1747888370132,0.03715133,176.4,176.37,0.04063416]
[1747888371232,0.03715133,176.4,176.39,5.6681]
[1747888371428,0.03715133,176.4,176.37,0.04063416]
[1747888372932,5.70505133,176.4,176.37,0.04063416]
[1747888374938,5.6682,176.39,176.37,0.04063416]
[1747888376940,5.70495133,176.4,176.37,0.04063416]
[1747888377240,0.03715133,176.4,176.37,0.04063416]
[1747888377944,0.03715133,176.4,176.39,5.6681]
[1747888379137,10.8837275,176.46,176.37,138.26063416]
[1747888379337,5.2177275,176.46,176.37,138.26063416]
[1747888379538,5.2177275,176.46,176.38,2.0637]
[1747888379835,5.2177275,176.46,176.38,4.0223]
[1747888380037,0.03656845,176.44,176.38,4.0223]
[1747888380245,0.03656845,176.44,176.42,5.6669]
[1747888381045,0.03656845,176.44,176.41,0.03678426]
[1747888381439,0.03656845,176.44,176.42,138.2]
[1747888381645,0.03656845,176.44,176.43,5.6668]
[1747888381844,0.03656845,176.44,176.42,138.2]
[1747888382442,0.03656845,176.44,176.41,0.03678426]
[1747888383340,5.6668,176.43,176.41,0.03678426]
[1747888383739,0.03656845,176.44,176.41,0.03678426]
[1747888383939,0.03656845,176.44,176.36,1.00326253]
[1747888384145,4.05356845,176.44,176.36,1.00326253]
[1747888385046,4.05356845,176.44,176.38,0.03825499]
[1747888387149,5.6681,176.39,176.38,0.03825499]
[1747888388047,0.04237452,176.4,176.38,0.03825499]
[1747888388251,0.04237452,176.4,176.39,5.6681]
[1747888388442,0.04237452,176.4,176.38,0.03825499]
[1747888390656,5.6681,176.39,176.38,0.03825499]
[1747888390850,0.04237452,176.4,176.38,0.03825499]
[1747888391351,0.04237452,176.4,176.39,5.6681]
[1747888391539,0.04237452,176.4,176.38,0.03825499]
[1747888391739,5.6681,176.39,176.38,0.03825499]
[1747888392652,0.04237452,176.4,176.38,0.03825499]
[1747888393752,5.6681,176.39,176.38,0.03825499]
[1747888394150,0.04237452,176.4,176.38,0.03825499]
[1747888396756,5.6681,176.39,176.38,0.03825499]
[1747888398358,5.6696,176.35,176.31,3.01406253]
[1747888399260,5.6699,176.34,176.31,1.00326253]
[1747888399553,5.6703,176.33,176.31,1.04268753]
[1747888399755,0.04182035,176.34,176.31,1.04268753]
[1747888399961,0.04182035,176.34,176.31,0.039425]
[1747888402260,0.04182035,176.34,176.31,5.710025]
[1747888403458,0.04182035,176.34,176.32,5.6703]
[1747888403857,0.04182035,176.34,176.31,0.039425]
[1747888404465,5.2177275,176.4,176.31,4.049325]
[1747888404657,5.2177275,176.4,176.37,5.6687]
[1747888405361,5.25647292,176.4,176.37,5.70763476]
[1747888405757,0.03874542,176.4,176.37,5.70763476]
[1747888406564,0.03874542,176.4,176.38,5.6684]
[1747888406960,0.03874542,176.4,176.37,0.03893476]
[1747888409066,5.70664542,176.4,176.37,0.03893476]
[1747888410862,5.70664542,176.4,176.37,5.70763476]
[1747888411071,0.03874542,176.4,176.37,5.70763476]
[1747888411466,0.03874542,176.4,176.38,5.6684]
[1747888411667,0.03874542,176.4,176.37,0.03893476]
[1747888411870,4.542e-05,176.4,176.37,0.03893476]
[1747888412164,5.2177275,176.44,176.37,0.03893476]
[1747888412567,5.2177275,176.44,176.4,5.6676]
[1747888412769,5.2177275,176.44,176.37,0.03893476]
[1747888412956,0.03709607,176.42,176.37,0.03893476]
[1747888413161,0.03709607,176.42,176.41,5.6672]
[1747888413357,5.2177275,176.44,176.41,136.78]
[1747888414372,5.26108477,176.44,176.41,136.82185678]
[1747888414574,5.26108477,176.44,176.42,5.6672]
[1747888414764,5.26108477,176.44,176.41,136.82185678]
[1747888415171,0.04335727,176.44,176.41,142.48915678]
[1747888415373,0.04335727,176.44,176.41,136.82185678]
[1747888415863,0.04335727,176.44,176.42,5.6672]
[1747888416060,0.04335727,176.44,176.41,136.82185678]
[1747888416770,5.71005727,176.44,176.41,136.82185678]
[1747888416966,0.04335727,176.44,176.41,136.82185678]
[1747888418568,0.04335727,176.44,176.43,5.6668]
[1747888418965,0.04335727,176.44,176.41,136.82185678]
[1747888419669,0.04335727,176.44,176.42,5.6669]
[1747888419970,0.04335727,176.44,176.41,136.82185678]
[1747888420362,5.2177275,176.51,176.41,136.82185678]
[1747888420667,5.2177275,176.51,176.41,153.84185678]
[1747888420865,5.2177275,176.51,176.41,136.82185678]
[1747888421061,5.2177275,176.51,176.41,0.04185678]
[1747888421267,5.2177275,176.51,176.42,242.48]
[1747888421470,0.03990071,176.48,176.45,0.04071607]
[1747888421667,0.03702819,176.48,176.45,0.03631704]
[1747888422573,0.03702819,176.48,176.47,5.6656]
[1747888422875,0.03702819,176.48,176.47,134.76]
[1747888423867,0.03702819,176.48,176.47,140.4256]
[1747888426271,2.819e-05,176.48,176.47,140.4256]
[1747888428373,2.819e-05,176.48,176.47,134.76]
[1747888428868,2.819e-05,176.48,176.47,140.4256]
[1747888430271,2.819e-05,176.48,176.47,134.76]
[1747888430974,2.819e-05,176.48,176.47,140.4256]
[1747888431173,2.819e-05,176.48,176.47,134.76]
[1747888431871,2.819e-05,176.48,176.45,0.03631704]
[1747888432471,2.819e-05,176.48,176.45,5.70231704]
[1747888433077,2.819e-05,176.48,176.46,5.6658]
[1747888433280,2.819e-05,176.48,176.45,0.03631704]
[1747888433678,2.819e-05,176.48,176.46,5.6659]
[1747888434577,2.819e-05,176.48,176.45,5.70241704]
[1747888435577,5.66522819,176.48,176.45,5.70241704]
[1747888435777,2.819e-05,176.48,176.45,0.03631704]
[1747888436276,5.66532819,176.48,176.45,0.03631704]
[1747888436781,5.6656,176.47,176.45,0.03631704]
[1747888436980,2.819e-05,176.48,176.45,0.03631704]
[1747888437774,2.819e-05,176.48,176.36,1.00326253]
[1747888437978,7.28684181,176.48,176.36,1.00326253]
[1747888438177,5.6675,176.41,176.37,5.6685]
[1747888438580,5.6675,176.41,176.35,244.3996]
[1747888438780,0.04240896,176.4,176.39,5.6681]
[1747888438982,0.04237048,176.41,176.38,0.03774859]
[1747888439483,0.04237048,176.41,176.38,5.70614859]
[1747888439782,0.04237048,176.41,176.32,6.67356253]
[1747888439975,138.71607048,176.41,176.32,6.67356253]
[1747888440174,138.71607048,176.41,176.32,1.00326253]
[1747888440377,138.71607048,176.41,176.32,6.67356253]
[1747888440577,138.71607048,176.41,176.32,1.00326253]
[1747888440882,138.71607048,176.41,176.35,0.0370095]
[1747888441376,3.97607048,176.41,176.35,0.0370095]
[1747888441577,0.04237048,176.41,176.35,0.0370095]
[1747888442083,0.04237048,176.41,176.37,5.6686]
[1747888443283,0.04237048,176.41,176.38,5.6683]
[1747888443881,0.04237048,176.41,176.35,0.0370095]
[1747888444882,5.6678,176.4,176.35,5.7063095]
[1747888446084,0.04237048,176.41,176.35,0.0370095]
[1747888446585,132.78237048,176.41,176.36,5.6691]
[1747888446885,132.78237048,176.41,176.35,0.0370095]
[1747888447084,0.04237048,176.41,176.35,0.0370095]
[1747888447976,0.04237048,176.41,176.38,5.6682]
[1747888448689,0.04237048,176.41,176.35,0.0370095]
[1747888449186,0.04237048,176.41,176.4,5.6678]
[1747888450491,0.04237048,176.41,176.39,5.7050385]
[1747888451089,0.04237048,176.41,176.4,5.6678]
[1747888456398,5.2177275,176.52,176.47,5.6654]
[1747888456584,5.2177275,176.52,176.42,132.74]
[1747888456894,5.6656,176.47,176.42,132.74]
[1747888457193,5.6656,176.47,176.42,138.407]
[1747888457387,5.6663,176.45,176.43,0.03611542]
[1747888457692,5.6663,176.45,176.42,0.04023546]
[1747888457894,5.70408513,176.45,176.42,0.03584211]